Cogmind - Beta 14 @@@ ROGUE MODE // 2024.09.21 @ 20:17:14 Player: Mallow Result: Destroyed by G-47 Trooper with Particle Gun Performance ------------- Evolutions (0) 0 Regions Visited (2) 400 Robots Destroyed (11) 55 Value Destroyed (273) 273 Prototype IDs (0) 0 Alien Tech Used (0) 0 Bonus (0) 0 TOTAL SCORE: 728 Bonus ------- None Cogmind --------- Core Integrity 0/250 Matter 254/300 Energy 94/100 System Corruption 0% Temperature Cool (63) Movement Treading (160) Location -10/Mines Parts ------- > --- POWER (1) -------- (None) > --- PROPULSION (2) --- Light Treads Light Treads > --- UTILITY (2) ------ Small Storage Unit Seismic Detector > --- WEAPON (2) ------- Assault Rifle Bore Cannon > --- INVENTORY (8) ---- Light Treads Light Treads Light Assault Rifle Peak State ------------ > --- POWER ------------ Ion Engine > --- PROPULSION ------- Light Treads Light Treads > --- UTILITY ---------- Small Storage Unit Seismic Detector > --- WEAPON ----------- Assault Rifle Bore Cannon > --- INVENTORY -------- Light Treads Light Treads [Rating: 11] Favorites ----------- Power Ion Engine Engine Ion Engine Propulsion Light Treads Treads Light Treads Utility Small Storage Unit Device Seismic Detector Storage Small Storage Unit Weapon Assault Rifle Energy Gun Small Laser Ballistic Gun Assault Rifle Ballistic Cannon Bore Cannon Build | -11 -10 -10 ------- Run | Yrd Mat Min Slots Evolved . | . . . Power . | . . . Propulsion . | . . . Utility . | . . . Weapon . | . . . Parts Attached 16 | 6 8 2 Power 4 | 1 3 . Engine 4 | 1 3 . Core . | . . . Reactor . | . . . Propulsion 6 | 2 4 . Treads 6 | 2 4 . Leg . | . . . Wheel . | . . . Hover . | . . . Flight . | . . . Utility 2 | 1 . 1 Device 1 | . . 1 Storage 1 | 1 . . Processor . | . . . Hackware . | . . . Protection . | . . . Artifact . | . . . Weapon 4 | 2 1 1 Energy Gun 1 | . 1 . Energy Cannon . | . . . Ballistic Gun 2 | 2 . . Ballistic Cannon 1 | . . 1 Launcher . | . . . Special Weapon . | . . . Impact Weapon . | . . . Slashing Weapon . | . . . Piercing Weapon . | . . . Special Melee Weapon . | . . . Unidentified Prototypes . | . . . Parts Lost 6 | . 5 1 Power 3 | . 2 1 Propulsion 1 | . 1 . Utility . | . . . Weapon 2 | . 2 . Highest Loss Streak 4 | . 4 1 To Critical Strikes . | . . . Average Slot Usage (%) 85 | . 83 87 Engine 13 | . 13 13 Treads 27 | . 27 28 Device 2 | . . 4 Storage 14 | . 14 14 Energy Gun 2 | . 4 . Ballistic Gun 18 | . 22 14 Ballistic Cannon 6 | . . 11 Peak Build Rating 11 | 6 6 11 Average Rating 7 | 4 5 9 On Entrance 3 | . 6 5 Naked Turns . | . . . Heaviest Build 22 | 14 14 22 Greatest Support 40 | 40 40 40 Greatest Overweight (x) . | . . . Average Overweight (x) . | . . . Largest Inventory Capacity 8 | 8 8 8 Average Capacity 7 | 7 8 8 Most Carried 6 | 1 6 3 Average Carried 2 | . 2 2 Final Capacity 8 | 8 8 8 Final Carried 3 | 1 2 3 Class Distribution -------------------- 100% | Mutant Dominant Class ---------------- Mutant | -10/Materials Mutant | -10/Mines Resources | -11 -10 -10 ----------- Run | Yrd Mat Min Matter Collected 549 | 260 225 64 Remotely . | . . . Salvage Created 391 | . 358 33 Parts 23 | . 20 3 Haulers Intercepted . | . . . Recyclers Shooed . | . . . Parts Field Recycled . | . . . Retrieved Matter . | . . . Parts Self-Destructed . | . . . Prevented . | . . . Kills | -11 -10 -10 ------- Run | Yrd Mat Min Combat Hostiles Destroyed 10 | . 8 2 Guns 9 | . 8 1 Cannons 1 | . . 1 Classes Destroyed 3 | . 3 . Recycler 1 | . 1 . Swarmer 4 | . 2 2 Grunt 6 | . 6 . Best Kill Streak 5 | . 5 2 Combat Bots Only 4 | . 4 2 Max Kills in Single Turn 1 | . 1 1 Gunslinging . | . . . Exploded . | . . . Melee . | . . . Uniques/NPCs Destroyed . | . . . Combat | -11 -10 -10 -------- Run | Yrd Mat Min Hostile Shots Fired 133 | . 117 16 Missed 37 | . 32 5 Damage Taken 1173 | . 1034 139 Core 257 | . 234 23 Absorbed by Shields . | . . . Core Remaining (%) 100 | 100 . . Volleys Fired 38 | . 29 9 Largest 2 | . 2 2 Hottest 77 | . 60 77 Shots Fired 76 | . 58 18 Gun 67 | . 58 9 Cannon 9 | . . 9 Launcher . | . . . Special . | . . . Kinetic 73 | . 55 18 Thermal 3 | . 3 . Explosive . | . . . Electromagnetic . | . . . Robot Hit Streak 8 | . 8 4 Robot Miss Streak 6 | . 3 6 Penetration Max . | . . . Secondary Targets 2 | . 2 . Max Gunslinging Chain 1 | . 1 . Shots Hit Robots 49 | . 41 8 Core Hits 19 | . 16 3 Critical Kills 1 | . . 1 Critical Parts Destroyed 2 | . . 2 Critical Strikes 3 | . . 3 Destroy 3 | . . 3 Melee Attacks . | . . . Impact . | . . . Slashing . | . . . Piercing . | . . . Sneak Attacks . | . . . Combat Hostiles . | . . . Follow-up Attacks . | . . . Damage Inflicted 852 | . 645 207 Guns 594 | . 549 45 Cannons 162 | . . 162 Explosions 87 | . 87 . Melee . | . . . Ramming 9 | . 9 . Kinetic 734 | . 527 207 Thermal 22 | . 22 . Explosive 87 | . 87 . Electromagnetic . | . . . Impact . | . . . Slashing . | . . . Piercing . | . . . Highest Corruption . | . . . Average Corruption . | . . . Corruption Purged . | . . . Corruption Blocked . | . . . Overload Shots . | . . . Overflow Damage 32 | . 32 . Projectiles . | . . . Explosions 32 | . 32 . Melee . | . . . Knockbacks 2 | . . 2 Impact . | . . . Kinetic 2 | . . 2 Secondary . | . . . Self-Inflicted Damage 101 | . 101 . Shots 1 | . 1 . Rammed 3 | . 3 . Targets Rammed 3 | . 3 . Kicked . | . . . Crushed . | . . . Highest Temperature 48 | . 13 48 Average Temperature 15 | . 6 24 Received Heat Transfer 525 | . 456 69 Siege Activations . | . . . Robots Corrupted . | . . . Combat Hostiles . | . . . Parts Fried . | . . . Impact Corruptions . | . . . Robots Melted . | . . . Combat Hostiles . | . . . Parts Melted . | . . . Heat Transferred 50 | . 50 . Parts Sabotaged . | . . . Parts Stolen . | . . . Parts Stripped . | . . . Power Chain Reactions . | . . . Alert | -11 -10 -10 ------- Run | Yrd Mat Min Peak Influence 123 | . 123 47 Initial 47 | . . 47 Average 51 | . 80 32 Maximum Alert Level . | . . . Low Security (%) 100 | 100 100 100 Level 1 . | . . . Level 2 . | . . . Level 3 . | . . . Level 4 . | . . . Level 5 . | . . . High Security . | . . . Max Security . | . . . Squads Dispatched 2 | . 2 . Investigation 1 | . 1 . Extermination . | . . . Reinforcement 1 | . 1 . Assault . | . . . Garrison . | . . . Intercept . | . . . Searches Triggered . | . . . Construction Impeded . | . . . Haulers Reinforced . | . . . Active Scanning Responses . | . . . Cargo Convoy Interrupts . | . . . Stealth | -11 -10 -10 --------- Run | Yrd Mat Min Distress Signals . | . . . Communications Jammed . | . . . Distress Signals . | . . . Times Spotted 20 | . 15 5 Peak Tracking Total 4 | . 4 2 Tactical Retreats . | . . . Traps | -11 -10 -10 ------- Run | Yrd Mat Min Traps Triggered 1 | . 1 . Indirectly . | . . . Trap Hack Attempts . | . . . Triggered . | . . . Disarmed . | . . . Reprogrammed . | . . . Reused . | . . . Traps Extracted . | . . . Installed . | . . . Triggered . | . . . Machines | -11 -10 -10 ---------- Run | Yrd Mat Min Machines Disabled 1 | . 1 . Max in Single Turn 1 | . 1 . Machines Repaired . | . . . Machines Dismantled . | . . . Machines Sabotaged . | . . . Overloaded Fab Kills . | . . . Hacking | -11 -10 -10 --------- Run | Yrd Mat Min Machines Accessed 1 | . 1 . Terminals 1 | . 1 . Fabricators . | . . . Repair Stations . | . . . Recycling Units . | . . . Scanalyzers . | . . . Garrison Access . | . . . Total Hacks 1 | . 1 . Successful . | . . . Failed 1 | . 1 . Catastrophic . | . . . Database Lockouts . | . . . Manual 1 | . 1 . Terminals 1 | . 1 . Fabricators . | . . . Repair Stations . | . . . Recycling Units . | . . . Scanalyzers . | . . . Garrison Access . | . . . Terminal Hacks . | . . . Fabricator Hacks . | . . . Repair Station Hacks . | . . . Recycling Unit Hacks . | . . . Scanalyzer . | . . . Garrison Access Hacks . | . . . Unauthorized Hacks . | . . . Terminals . | . . . Fabricators . | . . . Repair Stations . | . . . Recycling Units . | . . . Scanalyzers . | . . . Garrison Access . | . . . Data Cores Recovered . | . . . Used . | . . . Hacking Detections 1 | . 1 . Full Trace Events . | . . . Feedback Events . | . . . Feedback Blocked . | . . . Robot Schematics Acquired . | . . . Robots Built . | . . . Authchips . | . . . Time . | . . . Total Robot Build Rating . | . . . Part Schematics Acquired . | . . . Parts Built . | . . . Authchips . | . . . Time . | . . . Total Part Build Rating . | . . . Parts Repaired . | . . . Time . | . . . Parts Recycled . | . . . Recycled Matter . | . . . Retrieved Matter . | . . . Retrieved Components . | . . . Parts Scanalyzed . | . . . Part Schematics Acquired . | . . . Parts Damaged . | . . . Bothacking | -11 -10 -10 ------------ Run | Yrd Mat Min Used RIF Installer . | . . . Robots Hacked . | . . . Non-combat . | . . . Combat . | . . . Robot Hacks Applied . | . . . Relay Couplers Released . | . . . Fabnet Peak Effective % . | . . . Robots Rewired . | . . . Allies Hacked . | . . . Hacks Repelled . | . . . Allies | -11 -10 -10 -------- Run | Yrd Mat Min Total Allies . | . . . Largest Group . | . . . Highest-Rated Group . | . . . Highest-Rated Ally . | . . . Total Orders . | . . . Ally Attacks . | . . . Total Damage . | . . . Kills . | . . . Allies Corrupted . | . . . Allies Melted . | . . . Intel | -11 -10 -10 ------- Run | Yrd Mat Min Robot Analysis Total . | . . . Derelict Logs Recovered 1 | . . 1 Drone Launches . | . . . Drone Recoveries . | . . . Exploration | -11 -10 -10 ------------- Run | Yrd Mat Min Turns Passed 1658 | 87 733 838 Spaces Moved 798 | 50 378 370 Core 2 | 2 . . Treads 796 | 48 378 370 Legs . | . . . Wheels . | . . . Hover . | . . . Flight . | . . . Fastest Speed 50 | 50 160 160 Average Speed 159 | 155 160 160 Slowest Speed 160 | 160 160 160 Overloaded Moves . | . . . Propulsion Burnouts . | . . . Robots Hopped . | . . . Cave-ins Triggered . | . . . Exploration Rate (%) 44 | 4 50 80 Regions Visited 2 Branch Regions 1 Pre-discovered Areas 1 | . . 1 Known Exits Taken . | . . . Unknown Exits Taken 2 | 1 1 . Scrap Searched 1 | . . 1 Spaces Dug . | . . . Terrain Destroyed 29 | . 24 5 Melee . | . . . Projectile 5 | . . 5 AOE 24 | . 24 . Terrain Rammed . | . . . Walls Destroyed . | . . . Machines Disabled . | . . . Actions | -11 -10 -10 --------- Run | Yrd Mat Min Total 1103 | 56 447 600 Wait 224 | . 15 209 Move 796 | 49 377 370 Hop . | . . . Pick Up 11 | 1 8 2 Fast Attach 9 | 6 2 1 Attach 3 | . 2 1 Detach . | . . . Swap 4 | . 4 . Drop 7 | . 7 . Fire 38 | . 29 9 Melee . | . . . Ram . | . . . Kick . | . . . Crush 3 | . 3 . Escape Stasis . | . . . Rewire 8 | . . 8 Trap . | . . . Miscellaneous . | . . . Route ------- -11/Scrapyard -10/Materials (discovered 3 exits: [*Mat x2] / [*Min]) -10/Mines (discovered 1 exit: [*Mat]) History --------- Turn | Location | Event 32 | -11/Scrapyard | Discovered new exit (range 14) 88 | -11/Scrapyard | Entered Materials 308 | -10/Materials | Build established: Mutant 513 | -10/Materials | Core integrity fell below 50% 555 | -10/Materials | Core integrity fell below 20% 555 | -10/Materials | Discovered new exit (range 13) 585 | -10/Materials | Lost 4 parts (2p1n1w) 595 | -10/Materials | Discovered new exit (range 11) 743 | -10/Materials | Discovered new exit (range 15) 821 | -10/Materials | Entered Mines 943 | -10/Mines | A weapon hastily lodged in a ceiling crevice suddenly fell to the ground 1263 | -10/Mines | Learned location of Zion (-7) 1495 | -10/Mines | Discovered new exit (range 11) 1659 | -10/Mines | Destroyed by G-47 Trooper with Particle Gun Last Messages --------------- Acquired Lgt. Assault Rifle. R-06 Scavenger collects Lgt. Assault Rifle. Acquired 3 matter. U-05 Engineer builds a Wall. EXIT=FOUND Searching scrap... Found Tractor Beam. Found Huge Storage Unit. Found Hover Unit. Found 42 Matter. Acquired 22 matter. Ion Engine destroyed. HV Slug penetrates Wall. HV Slug penetrates G-34 Mercenary. Acquired 4 matter. G-47 Trooper knocked back. U-05 Engineer builds a Wall. HV Slug penetrates G-47 Trooper. G-47 Trooper suffers critical hit (Destroy). Destroyed Aluminum Leg. Map ----- +----------------------------------------------------+ | | | | | | | | | | | | | | | | | | | | | | | | | | | | | | | ????????????????????????????????????????? | | ??????????#####?????????????????????????? | | ?????????##! ##????????????????????????? | | ????????##| #????????????????????????? | | ???????## #???###??????????????????? | | ???????# #??## |##?????????????????? | | ######## !#???# #?????#######?????? | | ##?## ######; #?????? | | ### #?# gg #?????? | | ######## #??# % """ #?????? | | ???????#### ##?# @#%# """ #?????? | | ??????????## ### u###???????????? | | ???????????# !! #?????????????? | | ???????????# %=#?????????????? | | ???????????## ####?????????????? | | ????????????## !## #????????????????? | | ?????????????## ### #???????????????? | | ??????????????## #?## ??????????????? | | ???????????????# #??### ????????????? | | ???????????????# #?????# ???????????? | | ???????????????# #??????# ??????????? | | ???????????????# #??????? ?????????? | | ???????????????# #???????? ?????????? | | ???????????????# #?????????###?????????? | | ??????????????? ?????????????????????? | | ??????????????? ???????????????####??? | | ??????????????? ??????????????## ##?? | | ??????????????? ?????????????## #?? | | ???????????????????????????????## ##? | | ??????????????????????????????## #? | | ?????????????????????????????## #? | | ?????????????????????????????# ##? | | ????????????????????????????## ##?? | | ????????????????????????# ### ##??? | | ??#?????????????????????# ##???? | +----------------------------------------------------+ Best States ------------- Heat Dissipation 25 Energy Generation 10 Energy Capacity 250 Matter Stores 300 Matter Capacity 300 Sight Range 16 Terrain Scan Density 10 Evasion (%) 40 Recoil Reduction 2 Item Schematics ----------------- None Robot Schematics ------------------ None Fabricated ------------ Nothing Alien Tech Used ----------------- None Achievements -------------- None Challenges ------------ None Game ------ Seed BombInsulationStorage Manual? 0 Play Time 00:08:07 Cumulative 29.2 hours Start 2024.09.21 @ 20:11:14 End 2024.09.21 @ 20:17:14 Sessions 1 Manual Loads 0 Difficulty Rogue Special Mode None Game No. 55 Rogue 55 Adventurer 0 Explorer 0 Win Type - Total 0 Types 0/0/0/0/0/0/0/0/0 Lore% 12 Gallery% 31 Achievement% 23 Wizard Run 0 Options --------- Layout 0 ASCII 0 Keyboard 0 Movement Arrows Keybinds 0 Fullscreen 2 Font 24/Smallcaps Map View 56x25 Zoom Use 51% Tactical HUD 0 Map Filters NONE Filters NONE Steam 1 RUN: 0adb08b9-0a50-46d4-ac50-1cef8261f3c2